Cogmind - Beta 16 @@@ ROGUE MODE // 2025.11.15 @ 13:08:56 Player: Palikka Result: Destroyed by OJ-9YR(R) with Subdweller Machine Gun Performance ------------- Evolutions (0) 0 Regions Visited (2) 400 Robots Destroyed (30) 150 Value Destroyed (528) 528 Prototype IDs (2) 40 Alien Tech Used (0) 0 Bonus (0) 0 TOTAL SCORE: 1118 Bonus ------- None Cogmind --------- Core Integrity 0/250 Matter 295/300 Energy 250/250 System Corruption 0% Temperature Cool (9) Movement Treading (160) Location -10/Subcaves Parts ------- > --- POWER (1) -------- Ion Engine > --- PROPULSION (2) --- Light Treads Light Treads > --- UTILITY (2) ------ Large Storage Unit > --- WEAPON (2) ------- Subdweller Laser Subdweller Machine Gun > --- INVENTORY (15) --- Light Ion Engine Light Treads Subdweller Monowheel Heat Sink High-capacity Storage Unit Structural Scanner Improved Terrain Scanner Propulsion Shielding Subdweller Laser Subdweller Beam Cannon Light Assault Rifle Subdweller Machine Gun Battle Cannon Subdweller Shrapnel Launcher Hammer Peak State ------------ > --- POWER ------------ Ion Engine > --- PROPULSION ------- Light Treads Light Treads > --- UTILITY ---------- Large Storage Unit Light Armor Plating > --- WEAPON ----------- Subdweller Laser Subdweller Machine Gun > --- INVENTORY -------- Light Ion Engine Light Treads Subdweller Monowheel Heat Sink High-capacity Storage Unit Structural Scanner Signal Interpreter Improved Terrain Scanner Propulsion Shielding EM Pulse Gun Subdweller Beam Cannon Light Assault Rifle Light Assault Rifle Battle Cannon Hammer [Rating: 11] Favorites ----------- Power Ion Engine Engine Ion Engine Power Core Light Nuclear Core Propulsion Light Treads Treads Light Treads Wheel Compact Wheel Utility Large Storage Unit Device Seismic Detector Storage Large Storage Unit Protection Light Armor Plating Weapon Medium Laser Energy Gun Medium Laser Ballistic Gun Light Assault Rifle Impact Weapon Hammer Build | -11 -10 -10 ------- Run | Yrd Mat Sub Slots Evolved . | . . . Power . | . . . Propulsion . | . . . Utility . | . . . Weapon . | . . . Parts Attached 22 | 9 8 5 Power 4 | 1 3 . Engine 3 | 1 2 . Core 1 | . 1 . Reactor . | . . . Propulsion 5 | 3 1 1 Treads 4 | 2 1 1 Leg . | . . . Wheel 1 | 1 . . Hover . | . . . Flight . | . . . Utility 4 | 2 1 1 Device 1 | 1 . . Storage 2 | 1 1 . Processor . | . . . Hackware . | . . . Protection 1 | . . 1 Artifact . | . . . Weapon 9 | 3 3 3 Energy Gun 5 | 3 1 1 Energy Cannon . | . . . Ballistic Gun 3 | . 1 2 Ballistic Cannon . | . . . Launcher . | . . . Special Weapon . | . . . Impact Weapon 1 | . 1 . Slashing Weapon . | . . . Piercing Weapon . | . . . Special Melee Weapon . | . . . Unidentified Prototypes . | . . . Parts Lost 5 | . 2 3 Power . | . . . Propulsion 2 | . 1 1 Utility 2 | . 1 1 Weapon 1 | . . 1 Highest Loss Streak 1 | . 1 1 To Critical Strikes . | . . . Average Backups 10 | 3 10 13 Power 1 | 1 1 1 Propulsion 1 | 1 1 2 Utility 4 | . 3 5 Weapon 3 | . 2 4 Tool/Special . | . . . Unused Backups 18 | . 2 16 Power 2 | . 1 1 Propulsion 3 | . . 3 Utility 7 | . 1 6 Weapon 6 | . . 6 Tool/Special . | . . . Average Slot Usage (%) 92 | . 89 99 Engine 10 | . 9 14 Core 3 | . 4 . Treads 27 | . 27 28 Device 1 | . 2 . Storage 15 | . 16 14 Protection 4 | . . 13 Energy Gun 15 | . 16 12 Ballistic Gun 12 | . 11 14 Peak Build Rating 11 | 7 10 11 Average Rating 8 | 5 7 8 On Entrance 4 | . 7 7 Avg Prop Armor Cover (%) 4 | 4 . . Naked Turns . | . . . Heaviest Build 36 | 14 33 36 Greatest Support 40 | 40 40 40 Greatest Overweight (x) . | . . . Average Overweight (x) . | . . . Largest Inventory Capacity 15 | 8 15 15 Average Capacity 12 | 7 12 15 Most Carried 15 | 7 15 15 Average Carried 10 | 3 10 13 Final Capacity 15 | 8 15 15 Final Carried 15 | 7 15 15 Class Distribution -------------------- 100% | Mutant Dominant Class ---------------- Mutant | -10/Materials Mutant | -10/Subcaves Resources | -11 -10 -10 ----------- Run | Yrd Mat Sub Matter Collected 466 | 290 108 68 Remotely . | . . . Salvage Created 866 | 126 645 95 Parts 54 | 12 37 5 Haulers Intercepted 1 | . 1 . Recyclers Shooed 1 | . 1 . Parts Field Recycled . | . . . Retrieved Matter . | . . . Parts Self-Destructed 5 | . . 5 Prevented . | . . . Parts Restored . | . . . Kills | -11 -10 -10 ------- Run | Yrd Mat Sub Combat Hostiles Destroyed 19 | . 14 5 Guns 19 | . 14 5 Classes Destroyed 9 | 2 6 1 Worker 1 | . 1 . Tunneler 3 | 3 . . Hauler 1 | . 1 . Recycler 3 | 1 2 . Operator 1 | . 1 . Watcher 2 | . 2 . Swarmer 10 | . 6 4 Grunt 8 | . 8 . Subdweller 1 | . . 1 Best Kill Streak 5 | 4 5 4 Combat Bots Only 5 | . 5 4 Max Kills in Single Turn 1 | 1 1 1 Gunslinging . | . . . Exploded . | . . . Melee . | . . . Uniques/NPCs Destroyed . | . . . Combat | -11 -10 -10 -------- Run | Yrd Mat Sub Hostile Shots Fired 135 | . 87 48 Missed 36 | . 24 12 Hits 99 | . 63 36 Projectile 99 | . 63 36 Critical Strikes 1 | . 1 . Damage Taken 1172 | . 680 492 Core 269 | . 142 127 Absorbed by Shields . | . . . Core Remaining (%) 100 | 100 . . Volleys Fired 92 | 9 71 12 Largest 2 | 2 2 2 Hottest 90 | 90 90 90 Shots Fired 183 | 18 141 24 Gun 183 | 18 141 24 Cannon . | . . . Launcher . | . . . Special . | . . . Kinetic 59 | . 44 15 Thermal 123 | 17 97 9 Explosive . | . . . Electromagnetic 1 | 1 . . Robot Hit Streak 12 | 6 12 10 Robot Miss Streak 4 | 2 4 2 Penetration Max . | . . . Secondary Targets 2 | . . 2 Max Gunslinging Chain 1 | . . 1 Shots Hit Robots 111 | 11 81 19 Core Hits 47 | 5 37 5 Critical Kills 1 | . . 1 Critical Parts Destroyed 1 | . . 1 Critical Strikes 7 | . 5 2 Burn 5 | . 5 . Destroy 2 | . . 2 Melee Attacks 2 | . 2 . Impact 2 | . 2 . Slashing . | . . . Piercing . | . . . Sneak Attacks . | . . . Combat Hostiles . | . . . Follow-up Attacks . | . . . Damage Inflicted 1362 | 133 923 306 Guns 1362 | 133 923 306 Cannons . | . . . Explosions . | . . . Melee . | . . . Ramming . | . . . Kinetic 374 | . 181 193 Thermal 976 | 121 742 113 Explosive . | . . . Electromagnetic 12 | 12 . . Impact . | . . . Slashing . | . . . Piercing . | . . . Highest Corruption . | . . . Average Corruption . | . . . Corruption Purged . | . . . Corruption Blocked . | . . . Overload Shots . | . . . Overflow Damage . | . . . Projectiles . | . . . Explosions . | . . . Melee . | . . . Knockbacks . | . . . Impact . | . . . Kinetic . | . . . Secondary . | . . . Self-Inflicted Damage . | . . . Shots . | . . . Rammed . | . . . Targets Rammed . | . . . Kicked . | . . . Crushed . | . . . Highest Temperature 288 | 210 288 2 Average Temperature 96 | 106 96 2 Received Heat Transfer 339 | . 246 93 Siege Activations . | . . . Martial Activations . | . . . Shielding Activations . | . . . Robots Disrupted . | . . . Combat Hostiles . | . . . Robots Corrupted . | . . . Combat Hostiles . | . . . Parts Fried . | . . . Impact Corruptions . | . . . Robots Melted . | . . . Combat Hostiles . | . . . Parts Melted 5 | . 5 . Heat Transferred 3004 | 334 2447 223 Parts Sabotaged . | . . . Parts Stolen . | . . . Parts Stripped . | . . . Power Chain Reactions . | . . . Alert | -11 -10 -10 ------- Run | Yrd Mat Sub Maximum Alert Level . | . . . Low Security (%) 100 | 100 100 . Level 1 . | . . . Level 2 . | . . . Level 3 . | . . . Level 4 . | . . . Level 5 . | . . . High Security . | . . . Max Security . | . . . Peak Influence 190 | 15 190 . Initial . | . . . Average 58 | 2 63 . Influence Increases 626 | 20 481 125 Destroy 0b10 Robot/C 360 | . 280 80 Destroy 0b10 Robot/NC 55 | 20 35 . Destroy Leader 86 | . 86 . Successful Hack 18 | . 18 . Destroy Structure 2 | . 2 . Lose Combat Pursuer 105 | . 60 45 Influence Decreases 626 | 20 480 126 Entered New Map 1 | . . 1 Time Decay 595 | 20 460 115 Lost Part 30 | . 20 10 Squads Dispatched 4 | . 4 . Investigation 2 | . 2 . Extermination . | . . . Reinforcement 2 | . 2 . Assault . | . . . Garrison . | . . . Intercept . | . . . Searches Triggered . | . . . Construction Impeded . | . . . Haulers Reinforced . | . . . Active Scanning Responses . | . . . Cargo Convoy Interrupts . | . . . Stealth | -11 -10 -10 --------- Run | Yrd Mat Sub Distress Signals 1 | . 1 . Communications Jammed . | . . . Distress Signals . | . . . Times Spotted 38 | . 29 9 Peak Tracking Total 6 | . 6 2 Tactical Retreats 4 | . 3 1 Traps | -11 -10 -10 ------- Run | Yrd Mat Sub Traps Triggered 3 | . 3 . Indirectly . | . . . Trap Hack Attempts . | . . . Triggered . | . . . Disarmed . | . . . Reprogrammed . | . . . Reused . | . . . Traps Extracted . | . . . Installed . | . . . Triggered . | . . . Machines | -11 -10 -10 ---------- Run | Yrd Mat Sub Machines Disabled . | . . . Max in Single Turn . | . . . Machines Repaired . | . . . Machines Dismantled . | . . . Machines Sabotaged . | . . . Overloaded Fab Kills . | . . . Hacking | -11 -10 -10 --------- Run | Yrd Mat Sub Machines Accessed 5 | . 5 . Terminals 5 | . 5 . Fabricators . | . . . Repair Stations . | . . . Recycling Units . | . . . Scanalyzers . | . . . Garrison Access . | . . . Total Hacks 12 | . 12 . Successful 5 | . 5 . Failed 7 | . 7 . Catastrophic 1 | . 1 . Database Lockouts . | . . . Manual 3 | . 3 . Terminals 12 | . 12 . Fabricators . | . . . Repair Stations . | . . . Recycling Units . | . . . Scanalyzers . | . . . Garrison Access . | . . . Terminal Hacks 4 | . 4 . Prototype ID Bank 1 | . 1 . Locate Traps 2 | . 2 . Transport Status 1 | . 1 . Fabricator Hacks . | . . . Repair Station Hacks . | . . . Recycling Unit Hacks . | . . . Scanalyzer . | . . . Garrison Access Hacks . | . . . Unauthorized Hacks 1 | . 1 . Terminals 1 | . 1 . Botnet 1 | . 1 . Fabricators . | . . . Repair Stations . | . . . Recycling Units . | . . . Scanalyzers . | . . . Garrison Access . | . . . Data Cores Recovered . | . . . Used . | . . . Hacking Detections 5 | . 5 . Full Trace Events 1 | . 1 . Feedback Events . | . . . Feedback Blocked . | . . . Robot Schematics Acquired . | . . . Robots Built . | . . . Authchips . | . . . Time . | . . . Total Robot Build Rating . | . . . Part Schematics Acquired . | . . . Parts Built . | . . . Authchips . | . . . Time . | . . . Total Part Build Rating . | . . . Part Studies Acquired . | . . . Parts Repaired . | . . . Time . | . . . Parts Recycled . | . . . Recycled Matter . | . . . Retrieved Matter . | . . . Retrieved Components . | . . . Parts Scanalyzed . | . . . Part Schematics Acquired . | . . . Parts Damaged . | . . . Bothacking | -11 -10 -10 ------------ Run | Yrd Mat Sub Used RIF Installer . | . . . Robots Hacked . | . . . Non-combat . | . . . Combat . | . . . Robot Hacks Applied . | . . . Relay Couplers Released . | . . . Fabnet Peak Effective % . | . . . Robots Rewired . | . . . Allies Hacked . | . . . Hacks Repelled . | . . . Allies | -11 -10 -10 -------- Run | Yrd Mat Sub Total Allies . | . . . Largest Group . | . . . Highest-Rated Group . | . . . Highest-Rated Ally . | . . . Total Orders . | . . . Ally Attacks . | . . . Total Damage . | . . . Kills . | . . . Allies Corrupted . | . . . Allies Melted . | . . . Intel | -11 -10 -10 ------- Run | Yrd Mat Sub Active Infowar (turns) 300 | 9 291 . Seismic 300 | 9 291 . Robot Analysis Total . | . . . Derelict Logs Recovered . | . . . Drone Launches . | . . . Drone Recoveries . | . . . Exploration | -11 -10 -10 ------------- Run | Yrd Mat Sub Turns Passed 2379 | 125 1557 697 Spaces Moved 1206 | 49 816 341 Core 1 | 1 . . Treads 1204 | 47 816 341 Legs . | . . . Wheels 1 | 1 . . Hover . | . . . Flight . | . . . Fastest Speed 50 | 50 160 160 Average Speed 159 | 156 160 160 Slowest Speed 160 | 160 160 160 Overloaded Moves . | . . . Propulsion Burnouts . | . . . Robots Hopped . | . . . Potential Cave-ins . | . . . Cave-ins Triggered . | . . . Exploration Rate (%) 41 | 5 94 25 Regions Visited 2 Branch Regions 1 Pre-discovered Areas . | . . . Known Exits Taken . | . . . Unknown Exits Taken 2 | 1 1 . Scrap Searched 3 | . . 3 Spaces Dug 2 | . 2 . Terrain Destroyed 2 | . 2 . Melee 2 | . 2 . Projectile . | . . . AOE . | . . . Terrain Rammed . | . . . Walls Destroyed . | . . . Machines Disabled . | . . . Actions | -11 -10 -10 --------- Run | Yrd Mat Sub Total 1482 | 75 935 472 Wait 119 | 2 15 102 Move 1204 | 48 815 341 Hop . | . . . Pick Up 27 | 7 13 7 Fast Attach 11 | 7 3 1 Attach 5 | . 2 3 Detach 2 | . 2 . Swap 6 | 2 3 1 Drop 14 | . 9 5 Fire 92 | 9 71 12 Melee 2 | . 2 . Ram . | . . . Kick . | . . . Crush . | . . . Escape Stasis . | . . . Rewire . | . . . Trap . | . . . Miscellaneous . | . . . Route ------- -11/Scrapyard -10/Materials (discovered 4 exits: [*Mat x2] / [*Min] / [*Sub]) -10/Subcaves (discovered 2 exits: [*Mat] / [*Rec]) History --------- Turn | Location | Event 23 | -11/Scrapyard | Discovered new exit (range 16) 126 | -11/Scrapyard | Entered Materials 309 | -10/Materials | Build established: Mutant 664 | -10/Materials | Discovered new exit (range 16) 787 | -10/Materials | Core integrity fell below 50% 822 | -10/Materials | Discovered new exit (range 9) 1162 | -10/Materials | Discovered new exit (range 8) 1264 | -10/Materials | Discovered new exit (range 16) 1683 | -10/Materials | Entered Subcaves 1684 | -10/Subcaves | Approached by a straggling Scientist 1701 | -10/Subcaves | Discovered new exit (range 16) 1948 | -10/Subcaves | Discovered new exit (range 13) 1966 | -10/Subcaves | Curiously followed by a Cobbler waking with a query about "LVR3C" 2373 | -10/Subcaves | Core integrity fell below 20% 2380 | -10/Subcaves | Destroyed by OJ-9YR(R) with Subdweller Machine Gun Last Messages --------------- 02251_ Dropped Com. Wheel. 02252_ Acquired Battle Cannon. 02254_ Searching scrap... 02254_ Found Sub. Shrapnel Launcher. 02254_ Found 32 Matter. 02255_ Subatomizers dissect the Lgt. Assault Rifle. 02266_ Dropped EM Pulse Gun. 02266_ Dropped Signal Interpreter. 02275_ Acquired Sub. Shrapnel Launcher. 02277_ Acquired Sub. Machine Gun. 02282_ LN-RSJ(O) collects matter. 02301_ Subatomizers dissect the Lgt. Assault Rifle. 02303_ LN-RSJ(O) puts together Sub. Laser. 02314_ Dropped Lgt. Assault Rifle. 02315_ Acquired Sub. Laser. 02343_ LN-RSJ(O) puts together Sub. Laser. 02363_ LN-RSJ(O) suffers critical hit (Destroy). 02366_ OJ-9YR(R) suffers critical hit (Destroy). 02366_ Destroyed Disposable Heat Sink. 02378_ Lgt. Armor Plating destroyed. Map ----- +----------------------------------------------------+ | ?????????????????????????????????????????????? | | ?????????????????????????????????????????????? | | ?????????????????????????????????????????????? | | ?????????????????????????????????????????????? | | ?????????????????????????????????????????????? | | ?????????????????????????????????????????????? | | ?????????????????????????????????????????????? | | ?????????????????????????????????????????????? | | ?????????????????????????????????????????????? | | ?????????????????????????????????????????????? | | ?????????????????????????????????????????????? | | ?????????????????????????????????????????????? | | ?????????????????????????????????????????????? | | ?????????????????????????????????????????????? | | ?????????????????????????????????????????????? | | ?????????????????????"???????????????????????? | | ???????????????##????"???????????????????????? | | ??????????????## ???? ???????????????????????? | | ??????????????# ??? ???????????????????????? | | ??????????????# ??? ???????????????????????? | | ??????????????# ??? ???????????????????????? | | ??????????????# #?? ???????????????????????? | | ??????????????# R ## ???????????????????????? | | ??????????????# #???????????????????????? | | ??????????????# R##??????????????????????? | | ??????????????# @#??????????????????????? | | ??????????????# #??????????????????????? | | ??????????????## #??????????????????????? | | ???????????????## ##?????????????????????? | | ????????????????# #?????????????????????? | | ????????????????# #?????????????????????? | | ???????????????## #?????????????????????? | | ???????????????# ##?????????????????????? | | ???????????????# #??????????????????????? | | ???????????????# ##?????????????????????? | | ???????????????# #?????????????????????? | | ???????????????## #?????????????????????? | | ????????????????# ##?????????????????????? | | ????????????????## #??????????????????????? | | ?????????????????## ##??????????????????????? | | ?????????????????# #???????????????????????? | | ?????????????????## #???????????????????????? | | ??????????????????# #???????????????????????? | | ?????????????????## #???????????????????????? | | ????????????????## ##??????????????????????? | | ????????????????# ##?????????????????????? | | ??????????????### #?????????????????????? | | ??????????????# [ ##?????????????????????? | | ??????????????# ##??????????????????????? | | ??????????????# #???????????????????????? | +----------------------------------------------------+ Best States ------------- Heat Dissipation 25 Energy Generation 14 Energy Capacity 250 Matter Stores 300 Matter Capacity 300 Sight Range 16 Terrain Scan Density 10 Armor Coverage 150 Evasion (%) 40 Recoil Reduction 2 Item Schematics ----------------- None Robot Schematics ------------------ None Fabricated ------------ Nothing Repaired ---------- Nothing Studied --------- None Alien Tech Used ----------------- None Achievements -------------- None Challenges ------------ None Game ------ Seed RefineryShiftFemtoactuators Manual? 0 Play Time 00:15:24 Cumulative 436.0 hours Start 2025.11.15 @ 12:57:04 End 2025.11.15 @ 13:08:56 Sessions 1 Manual Loads 0 Difficulty Rogue Special Mode None Game No. 475 Rogue 475 Adventurer 0 Explorer 0 Win Type - Total 39 Types 29/0/7/3/0/0/0/0/0/0 Lore% 81 Gallery% 71 Achievement% 44 Wizard Run 0 Options --------- Layout 0 ASCII 0 Keyboard 1 Movement Numpad Keybinds 0 Fullscreen 1 Font 24/Smallcaps Map View 76x50 Zoom Use 0% Tactical HUD 1 Map Filters NONE Filters NONE Steam 1 RUN: 400ab6a4-e2a0-4c31-a109-bfc0a834d8fc